bitfinex-derivatives/quotes_ETHF0:USTF0_20250616
["timestamp","ask_amount","ask_price","bid_price","bid_amount"]
[1750032298821,32.06128701,2548.5,2548.4,0.78466]
[1750032299621,0.94463701,2548.5,2548.4,0.78466]
[1750032299817,0.6316,2548.7,2548.6,0.78462]
[1750032300022,25.64802476,2548.7,2548.6,0.78462]
[1750032300408,1.57502476,2548.7,2548.6,0.78462]
[1750032300610,25.80001476,2548.7,2548.6,0.78462]
[1750032300826,1.72801476,2548.7,2548.6,0.78462]
[1750032301715,0.94342476,2548.7,2548.6,0.78462]
[1750032301915,1.72801476,2548.7,2548.6,1.40942]
[1750032302414,0.94342476,2548.7,2548.6,1.40942]
[1750032302824,24.072,2549.0,2548.6,1.40942]
[1750032303017,0.6258,2549.1,2549.0,0.7845]
[1750032303219,0.6258,2549.1,2548.8,3.21369356]
[1750032303220,25.79895671,2549.1,2548.8,3.21369356]
[1750032303525,24.071,2549.1,2549.0,0.7845]
[1750032304124,0.78446,2549.1,2549.0,0.7845]
[1750032304328,24.85546,2549.1,2549.0,0.7845]
[1750032305021,24.071,2549.1,2548.8,3.90049356]
[1750032305225,0.78451,2549.0,2548.9,0.78452]
[1750032306028,24.85549,2549.1,2549.0,0.7845]
[1750032306227,0.78453,2548.9,2548.8,0.00589356]
[1750032306429,24.85353,2548.9,2548.8,0.00589356]
[1750032306621,25.79538439,2548.9,2548.8,0.00589356]
[1750032306829,0.78468,2548.4,2548.3,3.2078]
[1750032307030,0.78477,2548.1,2548.0,0.6868]
[1750032307223,0.78476,2548.2,2548.1,0.78476]
[1750032307530,3.42152,2548.3,2547.9,3.8686]
[1750032307724,1.3217,2548.3,2548.2,0.78474]
[1750032307925,2.10641,2548.3,2548.2,0.78474]
[1750032308331,1.3217,2548.3,2548.2,0.78474]
[1750032308532,24.85959356,2548.4,2548.3,0.78471]
[1750032308825,0.78473,2548.3,2548.2,0.78474]
[1750032309524,0.78471,2548.3,2548.2,0.78473]
[1750032310425,26.81759356,2548.4,2548.2,0.78473]
[1750032310623,26.81759356,2548.4,2548.3,0.78471]
[1750032310930,0.78471,2548.3,2548.2,0.78472]
[1750032311730,0.78476,2548.2,2548.1,0.78476]
[1750032311932,0.78476,2548.2,2547.9,6.21548577]
[1750032311933,0.78478,2548.1,2548.0,0.78479]
[1750032312529,0.78475,2548.2,2548.1,0.78476]
[1750032313233,24.07589356,2548.4,2548.3,0.78471]
[1750032313924,24.07589356,2548.4,2548.2,3.2078]
[1750032313925,24.86057356,2548.4,2548.2,3.99252]
[1750032314126,24.86057356,2548.4,2548.3,0.78471]
[1750032314520,24.07589356,2548.4,2548.3,0.78471]
[1750032314726,0.78471,2548.3,2548.2,3.2078]
[1750032314927,24.86059356,2548.4,2548.3,0.78471]
[1750032315127,24.86059356,2548.4,2548.2,3.2078]
[1750032315128,0.78479,2548.1,2547.9,6.21548577]
[1750032315330,1.9643,2548.3,2548.1,0.78476]
[1750032315529,0.653,2548.3,2548.2,0.78474]
[1750032317035,1.43771,2548.3,2548.2,0.78474]
[1750032317237,0.653,2548.3,2547.9,6.21548577]
[1750032317434,1.43773,2548.3,2548.2,0.78474]
[1750032318137,0.653,2548.3,2548.2,0.78474]
[1750032319135,0.78475,2548.2,2548.1,0.78476]
[1750032319436,1.43772,2548.3,2548.2,0.78474]
[1750032320833,0.653,2548.3,2548.2,0.78474]
[1750032321939,1.43773,2548.3,2548.2,0.78474]
[1750032322740,1.43773,2548.3,2548.1,0.78476]
[1750032322741,0.78476,2548.2,2548.1,0.78476]
[1750032322935,1.43536,2548.2,2548.1,0.78476]
[1750032323641,0.6506,2548.2,2548.1,0.78476]
[1750032325040,1.43534,2548.2,2548.1,0.78476]
[1750032325240,0.6506,2548.2,2548.1,0.78476]
[1750032325836,0.6506,2548.2,2548.0,0.78478]
[1750032325837,0.7848,2548.1,2548.0,0.78478]
[1750032326041,0.6506,2548.2,2548.1,0.78477]
[1750032326734,1.43536,2548.2,2548.1,0.78477]
[1750032327243,0.6506,2548.2,2548.1,0.78477]
[1750032328139,1.43534,2548.2,2548.1,0.78477]
[1750032328537,1.43536,2548.2,2548.1,0.78477]
[1750032329345,0.6506,2548.2,2548.1,0.78477]
[1750032329544,1.43771,2548.3,2548.2,0.78474]
[1750032331344,0.78477,2548.2,2548.1,0.78476]
[1750032332140,2.13637,2548.2,2548.1,0.78476]
[1750032333338,1.43773,2548.3,2548.2,0.78474]
[1750032333946,1.43771,2548.3,2548.2,0.78474]
[1750032334150,0.653,2548.3,2548.2,0.78474]
[1750032334552,1.43771,2548.3,2548.2,0.78474]
[1750032334753,0.653,2548.3,2548.2,0.78474]
[1750032335051,24.07389356,2548.4,2548.3,0.78471]
[1750032335249,25.01970983,2548.4,2548.3,0.78471]
[1750032335443,25.80438983,2548.4,2548.3,0.78471]
[1750032336144,25.01970983,2548.4,2548.3,0.78471]
[1750032336449,0.78473,2548.3,2548.2,0.78473]
[1750032336647,1.73054627,2548.3,2548.2,0.78474]
[1750032338345,0.78475,2548.2,2548.1,0.78475]
[1750032338546,1.73056627,2548.2,2548.1,0.78475]
[1750032340054,0.94581627,2548.2,2548.1,0.78475]
[1750032340549,0.78474,2548.2,2548.1,0.78475]
[1750032340753,1.73055627,2548.2,2548.1,0.78475]
[1750032340957,1.73168599,2548.2,2548.1,0.78475]
[1750032343760,0.78477,2548.1,2548.0,2.34688577]
[1750032344059,0.78477,2548.1,2547.9,5.55468577]
[1750032344060,0.7848,2548.0,2547.9,5.55468577]
[1750032344260,1.4523,2548.0,2547.9,5.55468577]
[1750032344460,1.4523,2548.0,2547.9,6.33951577]
[1750032345067,1.4523,2548.0,2547.9,3.2078]
[1750032345563,2.39943957,2548.0,2547.9,3.2078]
[1750032345764,2.39943957,2548.0,2547.9,3.99263]
[1750032346065,1.4523,2548.0,2547.9,3.99263]
[1750032347361,0.6675,2548.0,2547.9,3.99263]
[1750032347965,1.4523,2548.0,2547.9,3.99263]
[1750032348362,0.6836,2548.1,2548.0,0.7848]
[1750032348566,0.94685461,2548.1,2548.0,0.7848]
[1750032348762,0.65949356,2548.4,2548.0,1.2471]
[1750032348963,9.4628,2548.9,2548.4,1.9617]
[1750032349166,9.4628,2548.9,2548.8,0.78456]
[1750032349363,11.19396491,2548.9,2548.8,0.78456]
[1750032349559,10.40943491,2548.9,2548.8,0.78456]
[1750032349966,0.78456,2548.8,2548.7,0.78457]
[1750032350170,0.94663491,2548.8,2548.7,0.78457]
[1750032351371,0.78462,2548.6,2548.5,0.6361]
[1750032351666,0.78468,2548.4,2548.3,0.78469]
[1750032351861,0.78466,2548.5,2548.4,0.78468]
[1750032353067,0.78463,2548.6,2548.5,0.78463]
[1750032353271,0.94569574,2548.6,2548.3,3.2078]
[1750032353466,0.78468,2548.4,2548.3,3.9925]
[1750032353771,0.78467,2548.5,2548.4,0.78468]
[1750032354663,0.78462,2548.6,2548.5,0.78465]
[1750032355067,0.78462,2548.6,2548.4,0.78466]
[1750032355068,0.78466,2548.5,2548.4,0.78466]
[1750032356066,0.78467,2548.5,2548.4,0.78467]
[1750032357070,0.78464,2548.6,2548.5,0.78464]
[1750032357272,1.73013432,2548.6,2548.5,0.78464]
[1750032357473,0.78466,2548.5,2548.4,0.78466]
[1750032358475,0.78463,2548.6,2548.5,0.78463]
[1750032358673,1.73010096,2548.6,2548.5,0.78463]
[1750032359574,0.78463,2548.6,2548.5,0.78463]
[1750032359969,7.03861,2548.7,2548.6,0.78462]
[1750032360172,0.78465,2548.6,2548.5,0.78464]
[1750032360376,7.0386,2548.7,2548.6,0.78462]
[1750032360569,7.19936578,2548.7,2548.6,0.78462]
[1750032360776,7.19933888,2548.7,2548.6,0.78462]
[1750032361871,7.98392888,2548.7,2548.6,0.78462]
[1750032362472,6.254,2548.7,2548.6,0.78462]
[1750032363179,0.78462,2548.6,2548.5,2.06832]
[1750032364081,0.78462,2548.6,2548.5,0.6621]
[1750032364281,0.78462,2548.6,2548.5,1.44675]
[1750032365876,0.78461,2548.7,2548.6,0.7846]
[1750032366079,0.78462,2548.6,2548.5,1.44673]
[1750032366882,0.78461,2548.7,2548.6,0.78462]
[1750032367087,1.72925616,2548.7,2548.6,0.78462]
[1750032367778,0.78461,2548.7,2548.6,0.78462]
[1750032367978,0.78462,2548.6,2548.5,0.6621]
[1750032368284,0.78467,2548.5,2548.3,3.2078]
[1750032368486,1.45827,2548.5,2548.4,0.78467]
[1750032371789,7.03859,2548.8,2548.7,0.78459]
[1750032371988,7.1987336,2548.8,2548.7,0.78459]
[1750032372185,7.1987336,2548.8,2548.6,0.7846]
[1750032372382,0.78461,2548.7,2548.6,0.7846]
[1750032372576,3.2078,2548.9,2548.5,0.6508]
[1750032372884,0.7846,2548.7,2548.6,0.7846]
[1750032373088,0.7846,2548.7,2548.4,1.3497]
[1750032373089,0.78465,2548.5,2548.4,0.78466]
[1750032373786,0.78465,2548.5,2548.3,3.8928]
[1750032373787,0.78464,2548.6,2548.5,0.78463]
[1750032374289,0.78461,2548.7,2548.6,0.78462]
[1750032374490,1.72949737,2548.7,2548.6,0.78462]
[1750032375183,0.94488737,2548.7,2548.6,0.78462]
[1750032375486,0.94488737,2548.7,2548.6,3.99242]
[1750032376087,6.25,2548.9,2548.8,0.78456]
[1750032376283,7.97952426,2548.9,2548.8,0.78456]
[1750032376483,7.97952426,2548.9,2548.6,3.99241]
[1750032376484,0.78459,2548.7,2548.6,3.99241]
[1750032376688,1.72987304,2548.7,2548.6,3.99241]
[1750032377392,0.94528304,2548.7,2548.6,3.99241]
[1750032377592,0.78456,2548.8,2548.7,0.78459]
[1750032377791,1.73013914,2548.8,2548.7,0.78459]
[1750032377989,1.73013914,2548.8,2548.7,1.41629]
[1750032378391,0.94557914,2548.8,2548.7,1.41629]
[1750032378793,1.73013914,2548.8,2548.7,1.41629]
[1750032378997,1.73013914,2548.8,2548.7,0.6317]
[1750032379294,0.78459,2548.7,2548.6,3.2078]
[1750032379497,1.73016914,2548.7,2548.6,3.2078]
[1750032380194,2.90705914,2548.7,2548.3,6.33939577]
[1750032380394,0.78468,2548.4,2548.3,3.2078]
[1750032380894,1.73078246,2548.4,2548.3,3.2078]
[1750032381098,0.78468,2548.4,2548.3,3.99251]
[1750032382094,0.78468,2548.5,2548.4,0.78467]
[1750032382295,2.05144,2548.6,2548.5,0.78465]
[1750032382596,0.78468,2548.5,2548.4,0.78467]
[1750032382796,0.78468,2548.4,2548.3,3.99249]
[1750032383996,0.78477,2548.1,2548.0,2.34688577]
[1750032384193,0.7848,2548.0,2547.9,3.2078]
[1750032384586,0.78483,2547.9,2547.8,0.00589356]
[1750032384789,3.64060389,2547.9,2547.8,0.00589356]
[1750032384993,0.78496,2547.5,2547.4,3.2078]
[1750032385186,1.72883389,2547.5,2547.4,3.2078]
[1750032385386,0.78499,2547.4,2547.3,0.6854]
[1750032385592,0.78505,2547.2,2547.1,0.6312]
[1750032385992,0.78505,2547.2,2547.1,1.41628]
[1750032386196,0.78502,2547.3,2547.2,0.78504]
[1750032386391,0.78502,2547.3,2547.1,1.41626]
[1750032386599,0.78502,2547.3,2547.2,0.78505]
[1750032387192,1.2817,2547.5,2547.1,1.41626]
[1750032387499,0.78508,2547.1,2547.0,3.8583]
[1750032387692,0.78508,2547.1,2547.0,4.64341]
[1750032389099,0.78505,2547.3,2547.1,0.78508]
[1750032389300,1.2817,2547.5,2547.1,0.78508]
[1750032389599,0.78505,2547.2,2547.1,0.78508]
[1750032389898,1.2817,2547.5,2547.0,3.8583]
[1750032389899,0.78508,2547.1,2547.0,3.8583]
[1750032390296,0.78508,2547.1,2547.0,3.2078]
[1750032391606,0.78508,2547.1,2547.0,3.99291]
[1750032392099,0.78508,2547.1,2547.0,4.61581]
[1750032392800,0.78508,2547.1,2547.0,3.8307]
[1750032393097,6.251,2547.2,2546.9,0.00589356]
[1750032393098,0.78511,2547.0,2546.9,0.00589356]
[1750032394901,6.251,2547.2,2546.9,3.21369356]
[1750032395102,7.03606,2547.2,2547.1,0.78508]
[1750032395297,0.785,2547.4,2547.3,0.78502]
[1750032395504,6.252,2547.5,2547.4,0.78499]
[1750032395797,0.78493,2547.6,2547.5,0.78493]
[1750032396701,6.252,2547.8,2547.3,1.3219]
[1750032396998,0.78502,2547.3,2547.2,3.99284]
[1750032397190,0.785,2547.4,2547.3,0.78501]
[1750032398401,0.78498,2547.5,2547.4,0.78498]
[1750032398695,1.44405,2547.6,2547.5,0.78496]
[1750032399195,0.78498,2547.5,2547.3,1.3452]
[1750032399393,0.78499,2547.4,2547.3,0.78501]
[1750032399590,8.2142,2547.8,2547.2,3.2078]
[1750032399796,0.78502,2547.3,2547.2,3.2078]
[1750032401299,0.78508,2547.1,2547.0,0.647]
[1750032401504,0.78511,2547.0,2546.9,0.79102356]
[1750032401705,0.78511,2547.0,2546.9,0.00589356]
[1750032401895,0.78511,2547.0,2546.9,0.79103356]
[1750032403901,0.78511,2547.0,2546.9,0.00589356]
[1750032404202,0.78511,2547.0,2546.9,0.79103356]
[1750032404706,0.78511,2547.0,2546.9,0.00589356]
[1750032405006,0.78511,2547.0,2546.9,0.79103356]
[1750032407708,0.7851,2547.1,2547.0,0.7851]
[1750032409304,0.78511,2547.0,2546.9,0.79101356]
[1750032411007,0.7851,2547.1,2547.0,0.78509]
[1750032411207,0.78511,2547.0,2546.9,0.79101356]
[1750032411906,6.25,2547.2,2547.1,0.78507]
[1750032412109,6.25,2547.2,2547.1,3.99287]
[1750032412309,0.785,2547.4,2547.3,0.78502]
[1750032413214,0.78503,2547.3,2547.2,0.78503]
[1750032414609,0.78505,2547.2,2547.1,5.24256]
[1750032415108,0.78505,2547.2,2547.1,3.2078]
[1750032415508,0.78505,2547.2,2547.1,3.99288]
[1750032417912,0.78505,2547.2,2547.1,3.2078]
[1750032418314,0.78508,2547.1,2547.0,1.44459]
[1750032420516,0.78508,2547.1,2547.0,0.6595]
[1750032421016,0.78508,2547.1,2547.0,1.44461]
[1750032421516,0.78507,2547.2,2547.1,0.78506]
[1750032422016,0.78505,2547.2,2547.1,3.99286]
[1750032422316,0.78503,2547.3,2547.2,0.78502]
[1750032422517,0.94430826,2547.3,2547.2,0.78502]
[1750032422814,1.72932826,2547.3,2547.2,0.78502]
[1750032424114,0.94430826,2547.3,2547.2,0.78502]
[1750032424313,1.72932826,2547.3,2547.2,0.78502]
[1750032424619,1.72932826,2547.3,2547.1,3.2078]
[1750032424620,0.78505,2547.2,2547.1,3.99286]
[1750032425714,0.78504,2547.3,2547.2,0.78502]
[1750032425920,1.7296919,2547.3,2547.2,0.78502]
[1750032426920,0.9446519,2547.3,2547.2,0.78502]
[1750032427514,7.03494,2547.6,2547.5,0.78496]
[1750032427714,0.78486,2547.9,2547.8,0.78486]
[1750032427919,1.72963298,2547.9,2547.8,0.78486]
[1750032428419,0.78486,2547.9,2547.8,1.41636]
[1750032429610,0.78486,2547.9,2547.8,0.6315]
[1750032429816,0.78486,2547.9,2547.8,1.41636]
[1750032430419,0.78486,2547.9,2547.8,0.6315]
[1750032430921,0.78486,2547.9,2547.8,1.41636]
[1750032431121,0.78486,2547.9,2547.8,0.6315]
[1750032431422,6.25,2548.0,2547.9,0.78483]
[1750032431618,0.00589356,2548.1,2548.0,0.7848]
[1750032431823,0.00589356,2548.1,2548.0,3.9926]
[1750032432815,0.78483,2547.9,2547.8,0.6315]
[1750032433021,0.78483,2547.9,2547.8,1.41636]
[1750032434224,0.78483,2547.9,2547.8,0.6315]
[1750032434717,0.00589356,2548.1,2548.0,0.7848]
[1750032434924,0.00589356,2548.1,2548.0,3.9926]
[1750032435625,0.00589356,2548.1,2548.0,0.7848]
[1750032435829,0.79066356,2548.1,2548.0,0.7848]
[1750032436022,0.00589356,2548.1,2548.0,3.9926]
[1750032436224,0.79066356,2548.1,2548.0,0.7848]
[1750032437031,0.00589356,2548.1,2548.0,0.7848]
[1750032437424,0.79066356,2548.1,2548.0,0.7848]
[1750032438523,0.00589356,2548.1,2548.0,0.7848]
[1750032438921,0.78483,2547.9,2547.8,0.6315]
[1750032439431,2.11362,2548.0,2547.9,0.78483]
[1750032439632,1.4417,2548.0,2547.9,0.78483]
[1750032439929,0.6569,2548.0,2547.7,3.2078]
[1750032440129,0.78484,2547.9,2547.8,0.78484]
[1750032440830,0.00589356,2548.1,2547.7,3.8458]
[1750032441024,0.79069356,2548.1,2548.0,0.7848]
[1750032441223,0.78482,2548.0,2547.9,0.78481]
[1750032441619,0.79066356,2548.1,2548.0,0.7848]
[1750032441824,0.00589356,2548.1,2547.9,0.78482]
[1750032442022,0.78483,2548.0,2547.9,0.78482]
[1750032443431,0.00589356,2548.1,2548.0,0.7848]
[1750032443619,0.00589356,2548.1,2548.0,3.9926]
[1750032444219,0.00589356,2548.1,2548.0,0.7848]
[1750032444425,0.00589356,2548.1,2548.0,3.9926]
[1750032445229,0.00589356,2548.1,2548.0,0.7848]
[1750032445726,0.79066356,2548.1,2548.0,0.7848]
[1750032445931,0.7848,2548.0,2547.9,0.78481]
[1750032446325,1.4119,2548.0,2547.9,0.78481]
[1750032447227,0.6271,2548.0,2547.9,0.78481]
[1750032447931,0.6271,2548.0,2547.7,3.8458]
[1750032448126,1.9685,2548.0,2547.8,0.78485]
[1750032448428,1.9685,2548.0,2547.7,3.8458]
[1750032448429,0.78486,2547.8,2547.7,4.63067]
[1750032448826,0.78486,2547.8,2547.7,1.42287]
[1750032449631,0.78486,2547.8,2547.7,0.638]
[1750032449819,1.9685,2548.0,2547.7,0.638]
[1750032449820,0.6271,2548.0,2547.7,0.638]
[1750032450025,0.78481,2548.0,2547.9,0.78481]
[1750032452129,0.78486,2547.8,2547.7,4.6307]
[1750032452530,0.00589356,2548.1,2548.0,0.7848]
[1750032452730,0.78467,2548.5,2548.0,3.9926]
[1750032453033,0.78467,2548.5,2548.3,0.78468]
[1750032453532,0.78468,2548.4,2548.1,2.6061]
[1750032453739,0.78466,2548.5,2548.3,0.78469]
[1750032454130,7.02963,2548.6,2548.4,0.78468]
[1750032454334,0.78463,2548.6,2548.4,0.78468]
[1750032454637,9.4528,2548.7,2548.4,0.78468]
[1750032454638,0.78465,2548.5,2548.4,0.78468]
[1750032454828,9.4528,2548.7,2548.1,1.30659356]
[1750032455135,0.6624,2548.4,2548.3,0.78471]
[1750032455631,0.78473,2548.3,2548.2,0.78473]
[1750032456535,6.244,2548.6,2548.5,0.78465]
[1750032456738,7.97221657,2548.6,2548.5,0.78465]
[1750032456941,6.244,2548.6,2548.5,0.78465]
[1750032457125,7.18796633,2548.6,2548.5,0.78465]
[1750032458038,6.244,2548.6,2548.5,0.78465]
[1750032459527,6.244,2548.6,2548.5,1.45875]
[1750032459735,0.7846,2548.7,2548.6,0.78462]
[1750032459936,0.94328189,2548.7,2548.6,0.78462]
[1750032460134,1.72787189,2548.7,2548.6,0.78462]
[1750032460337,0.94328189,2548.7,2548.5,1.45873]
[1750032460634,0.78461,2548.7,2548.6,0.7846]
[1750032460836,1.72781532,2548.7,2548.6,0.7846]
[1750032461531,3.03031532,2548.7,2548.6,0.7846]
[1750032463238,0.78462,2548.6,2548.5,0.78463]
[1750032463446,0.78465,2548.5,2548.4,3.2078]
[1750032463745,1.40955,2548.5,2548.4,3.2078]
[1750032463944,1.40955,2548.5,2548.4,3.99248]
[1750032464246,1.40955,2548.5,2548.4,3.2078]
[1750032464645,1.40955,2548.5,2548.4,3.99248]
[1750032465646,1.40955,2548.5,2548.4,3.2078]
[1750032466445,1.40955,2548.5,2548.4,3.99248]
[1750032467449,1.40955,2548.5,2548.4,3.2078]
[1750032467853,1.40955,2548.5,2548.4,3.99248]
[1750032468542,0.6249,2548.5,2548.4,3.99248]
[1750032468744,0.78464,2548.6,2548.5,0.78465]
[1750032468942,0.6256,2548.7,2548.6,0.78462]
[1750032469337,9.4518,2548.8,2548.7,0.78459]
[1750032469641,10.39442391,2548.8,2548.7,0.78459]
[1750032470147,11.17898391,2548.8,2548.7,0.78459]
[1750032470448,7.97118391,2548.8,2548.7,0.78459]
[1750032470641,3.2078,2549.2,2548.7,5.0]
[1750032470843,3.13193606,2550.3,2549.1,5.1689]
[1750032471143,3.91492008,2550.6,2548.8,2.5736]
[1750032471144,0.78431,2549.6,2549.5,3.2078]
[1750032471341,26.18648,2550.0,2549.5,3.2078]
[1750032471541,0.78431,2549.6,2549.5,3.2078]
[1750032472247,3.45521,2549.6,2549.5,3.2078]
[1750032472749,9.69621,2549.6,2549.5,3.2078]
[1750032474450,8.9119,2549.6,2549.5,3.2078]
[1750032475250,9.69621,2549.6,2549.5,3.2078]
[1750032475755,9.22543579,2549.6,2549.5,3.78703599]
[1750032475947,9.22543579,2549.6,2549.5,3.2078]
[1750032479151,9.22543579,2549.6,2549.5,3.78695618]
[1750032479449,9.22543579,2549.6,2549.5,3.2078]
[1750032480053,9.22543579,2549.6,2549.5,3.78700074]
[1750032480346,16.64892579,2549.6,2549.0,0.78449]
[1750032480545,5.16883,2549.3,2548.6,3.2078]
[1750032480753,0.78459,2548.7,2548.6,3.2078]
[1750032480953,7.02359,2548.7,2548.6,3.2078]
[1750032481342,7.67949,2548.7,2548.6,3.2078]
[1750032482152,0.78462,2548.6,2548.5,0.78463]
[1750032482454,6.8949,2548.7,2548.4,1.28049356]
[1750032482455,0.78465,2548.5,2548.4,1.28049356]
[1750032482656,0.78464,2548.6,2548.4,2.06515356]
[1750032482949,6.8949,2548.7,2548.5,1.36416787]
[1750032483147,6.8949,2548.7,2548.4,0.64469356]
[1750032483351,0.78465,2548.5,2548.4,1.42937356]
[1750032483547,0.78465,2548.5,2548.4,0.58543667]
[1750032483747,0.78465,2548.5,2548.4,0.00589356]
[1750032483952,0.78465,2548.5,2548.4,0.58557993]
[1750032484250,0.78465,2548.5,2548.4,0.00589356]
[1750032485250,31.22865,2548.5,2548.4,0.00589356]
[1750032485554,31.22865,2548.5,2548.4,0.58562884]
[1750032485751,31.22865,2548.5,2548.4,0.00589356]
[1750032491956,0.78465,2548.5,2548.4,0.00589356]
[1750032492159,6.241,2548.8,2548.4,0.00589356]
[1750032492360,0.7846,2548.7,2548.6,0.78461]
[1750032492555,30.412,2548.8,2548.6,0.78461]
[1750032492760,31.19658,2548.8,2548.7,0.78459]
[1750032493570,6.241,2548.8,2548.7,0.78459]
[1750032493760,30.416,2548.8,2548.7,2.71529]
[1750032494560,0.78459,2548.7,2548.6,3.2078]
[1750032494956,0.78465,2548.5,2548.4,3.56e-06]
[1750032495264,27.61438029,2548.5,2548.4,3.56e-06]
[1750032495465,32.61342286,2548.5,2548.4,3.56e-06]
[1750032495657,30.27207656,2548.5,2548.4,3.56e-06]
[1750032496256,33.00399785,2548.5,2548.4,3.56e-06]
[1750032496771,30.66408798,2548.5,2548.4,3.56e-06]
[1750032496973,30.27207656,2548.5,2548.4,3.56e-06]
[1750032498266,31.62197656,2548.5,2548.4,3.56e-06]
[1750032499869,34.35284168,2548.5,2548.4,3.56e-06]
[1750032503071,32.01694743,2548.5,2548.4,3.56e-06]
[1750032503466,34.35284168,2548.5,2548.4,3.56e-06]
[1750032504366,29.35284168,2548.5,2548.4,3.56e-06]
[1750032504566,34.35284168,2548.5,2548.4,3.56e-06]
[1750032505270,32.01694743,2548.5,2548.4,3.56e-06]
[1750032505474,32.08527349,2548.5,2548.4,3.56e-06]
[1750032505766,3.92407,2548.0,2546.6,3.2078]
[1750032505968,0.7852,2546.7,2546.6,3.2078]
[1750032506168,25.0062,2546.7,2546.6,3.2078]
[1750032508979,25.0062,2546.7,2546.6,3.834]
[1750032509387,0.00589356,2546.9,2546.6,4.61922]
[1750032509682,30.591,2546.7,2546.6,4.61922]
[1750032509868,31.3762,2546.7,2546.6,3.834]
[1750032510467,31.3762,2546.7,2546.6,0.6262]
[1750032511688,31.3762,2546.7,2546.6,1.41144]
[1750032512170,31.3762,2546.7,2546.6,0.6262]
[1750032512580,0.7852,2546.8,2546.6,0.6262]
[1750032512883,0.00589356,2546.9,2546.8,0.78517]
[1750032513379,0.00589356,2546.9,2546.8,5.78517]
[1750032515474,0.00589356,2546.9,2546.8,0.78517]
[1750032516579,0.78517,2546.8,2546.7,3.99299]
[1750032516771,0.78521,2546.7,2546.6,0.6262]
[1750032517175,0.7852,2546.8,2546.6,5.6262]
[1750032517474,0.7852,2546.8,2546.7,3.2078]
[1750032517680,0.00589356,2546.9,2546.6,6.41142]
[1750032517881,0.78521,2546.7,2546.6,1.41142]
[1750032518276,0.78521,2546.7,2546.6,5.6262]
[1750032518682,0.78521,2546.7,2546.6,6.41144]
[1750032519088,0.78519,2546.8,2546.7,0.78519]
[1750032519290,0.78521,2546.7,2546.6,4.61922]
[1750032519583,0.78521,2546.7,2546.6,9.61922]
[1750032519783,0.78521,2546.7,2546.6,6.41142]
[1750032520580,0.78521,2546.7,2546.6,5.6262]
[1750032522892,0.00589356,2546.9,2546.8,0.78517]
[1750032523085,6.37,2547.6,2546.9,1.96284]
[1750032523289,3.2078,2547.7,2547.6,0.78493]
[1750032523997,3.9927,2547.7,2547.6,0.78493]
[1750032524195,3.9927,2547.7,2547.5,0.78494]
[1750032524696,3.9927,2547.7,2547.6,0.6256]
[1750032525097,0.7849,2547.7,2547.6,3.8334]
[1750032526796,0.78489,2547.8,2547.6,3.8334]
[1750032527104,0.00589356,2547.9,2547.8,0.78487]
[1750032527598,0.00589356,2547.9,2547.8,5.78487]
[1750032528491,0.00589356,2547.9,2547.8,0.78487]
[1750032530002,0.00589356,2547.9,2547.8,5.78487]
[1750032533405,0.7849,2547.7,2547.6,4.61831]
[1750032533706,0.7849,2547.7,2547.6,3.8334]
[1750032535107,0.7849,2547.7,2547.6,3.2078]
[1750032536602,2.0288,2547.7,2547.6,3.2078]
[1750032538800,0.78498,2547.5,2547.3,3.99281]
[1750032538999,0.78498,2547.5,2547.4,0.78499]
[1750032540108,0.78498,2547.5,2547.3,3.99281]
[1750032540503,0.78495,2547.6,2547.4,0.78499]
[1750032540704,0.78496,2547.5,2547.4,0.78499]
[1750032541414,0.78495,2547.6,2547.5,0.78495]
[1750032542303,0.78493,2547.6,2547.5,0.78493]
[1750032543006,0.78499,2547.5,2547.4,0.78498]
[1750032544206,0.78499,2547.4,2547.3,3.2078]
[1750032544403,0.78499,2547.4,2546.4,0.00589356]
[1750032544404,3.2078,2547.4,2546.4,0.00589356]
[1750032544603,5.171,2546.5,2545.5,3.2078]
[1750032544802,3.2078,2546.1,2545.8,0.78546]
[1750032545002,0.78543,2546.0,2545.7,0.78551]
[1750032545313,3.2078,2546.1,2545.5,3.2078]
[1750032545512,0.7855,2545.8,2545.6,0.78554]
[1750032545713,0.78553,2545.7,2545.5,3.99336]
[1750032546506,1.33089356,2546.0,2545.6,0.78554]
[1750032547201,0.00589356,2546.0,2545.5,3.2078]
[1750032547408,0.78547,2545.9,2545.5,5.31575]
[1750032547609,0.78547,2545.9,2545.6,0.78554]
[1750032548312,0.79133356,2546.0,2545.7,0.78551]
[1750032549017,0.79132356,2546.0,2545.7,0.7855]
[1750032549813,0.79132356,2546.0,2545.8,0.78548]
[1750032550014,0.00589356,2546.0,2545.5,4.5302]
[1750032550214,0.79131356,2546.0,2545.8,0.78546]
[1750032550516,0.79131356,2546.0,2545.9,0.78545]
[1750032550713,0.79131356,2546.0,2545.8,0.78546]
[1750032552013,0.79131356,2546.0,2545.9,0.78545]
[1750032552216,0.79131356,2546.0,2545.8,0.78546]
[1750032553113,0.79131356,2546.0,2545.9,0.78545]
[1750032553617,0.78545,2545.9,2545.8,0.78546]
[1750032553822,0.79132356,2546.0,2545.9,0.78545]
[1750032555617,0.00589356,2546.0,2545.9,0.78545]
[1750032556223,0.79131356,2546.0,2545.9,0.78545]
[1750032560016,0.00589356,2546.0,2545.9,0.78545]
[1750032560218,0.79131356,2546.0,2545.9,0.78545]
[1750032560721,0.78546,2545.9,2545.7,0.6247]
[1750032560923,0.79133356,2546.0,2545.9,0.78545]
[1750032562023,0.78546,2545.9,2545.8,0.78546]
[1750032562719,0.79133356,2546.0,2545.9,0.78545]
[1750032563319,0.78554,2545.7,2545.5,5.1912]
[1750032563526,0.78554,2545.6,2545.5,5.97675]
[1750032563720,0.78554,2545.7,2545.5,5.97675]
[1750032563928,0.78551,2545.8,2545.7,0.78551]